fUST/lending_fUST_20250806
["ID","MTS","AMOUNT","RATE_DAILY","PERIOD"]
[377480898,1754423441173,-219.24024814,0.00029041,2]
[377480899,1754423441183,-460.0,0.00029041,2]
[377480900,1754423441193,-460.0,0.00029041,2]
[377480901,1754423441203,-460.0,0.00029041,2]
[377480902,1754423441213,-460.0,0.00029041,2]
[377480903,1754423441222,-460.0,0.00029041,2]
[377480904,1754423441232,-460.0,0.00029041,2]
[377480905,1754423441241,-493.57,0.00029041,2]
[377480906,1754423441250,-2870.23,0.00029041,2]
[377480907,1754423441259,-460.0,0.00029041,2]
[377480908,1754423441268,-460.0,0.00029041,2]
[377480909,1754423441278,-19201.22,0.00029041,2]
[377480910,1754423441287,-460.0,0.00029041,2]
[377480911,1754423441296,-1494.04146353,0.00029129,2]
[377480912,1754423441306,-5328.15778977,0.00029139,2]
[377480913,1754423441315,-1517.02598451,0.00029139,2]
[377480914,1754423441324,-160.0,0.00029195,2]
[377480915,1754423441333,-460.0,0.00029315,2]
[377480916,1754423441342,-499.95,0.00029315,2]
[377480917,1754423441351,-469.9,0.00029315,2]
[377480918,1754423441361,-460.0,0.00029315,2]
[377480919,1754423441370,-846.84,0.00029315,2]
[377480920,1754423441383,-460.0,0.00029315,2]
[377480921,1754423441392,-553.6,0.00029315,2]
[377480922,1754423441401,-460.0,0.00029315,2]
[377480923,1754423441410,-203.10837642,0.00029315,2]
[377480924,1754423441421,-460.0,0.00029315,2]
[377480925,1754423441430,-503.37746107,0.00029315,2]
[377480926,1754423441440,-460.0,0.00029315,2]
[377480927,1754423441449,-460.0,0.00029315,2]
[377480928,1754423441459,-492.81495901,0.00029315,2]
[377480929,1754423441468,-460.0,0.00029315,2]
[377480930,1754423441477,-460.0,0.00029315,2]
[377480931,1754423441486,-172.35,0.00029315,2]
[377480932,1754423441495,-460.0,0.00029315,2]
[377480933,1754423441505,-460.0,0.00029315,2]
[377480934,1754423441514,-236.02854648,0.00029315,2]
[377480935,1754423441524,-460.0,0.00029315,2]
[377480936,1754423441533,-493.57,0.00029315,2]
[377480937,1754423441542,-2870.23,0.00029315,2]
[377480938,1754423441552,-460.0,0.00029315,2]
[377480939,1754423441561,-460.0,0.00029315,2]
[377480940,1754423441571,-19201.22,0.00029315,2]
[377480941,1754423441580,-460.0,0.00029315,2]
[377480942,1754423441590,-15779.5208315,0.00029376,11]
[377480943,1754423441599,-160.0,0.00029389,2]
[377480944,1754423441609,-216.4206905,0.00029389,2]
[377480945,1754423441618,-160.0,0.00029389,2]
[377480946,1754423441627,-1494.04146353,0.00029402,2]
[377480947,1754423441637,-160.0,0.00029402,2]
[377480948,1754423441646,-160.0,0.00029402,2]
[377480949,1754423441655,-461.15695721,0.00029402,2]
[377480950,1754423441665,-231.72586818,0.00029402,2]
[377480951,1754423441675,-160.0,0.00029402,2]
[377480952,1754423441684,-160.0,0.00029412,2]
[377480953,1754423441693,-842.25606042,0.00029412,2]
[377480954,1754423441702,-160.0,0.00029412,2]
[377480955,1754423441713,-460.0,0.00029589,2]
[377480956,1754423441723,-499.95,0.00029589,2]
[377480957,1754423441733,-460.0,0.00029589,2]
[377480958,1754423441743,-846.84,0.00029589,2]
[377480959,1754423441753,-460.0,0.00029589,2]
[377480960,1754423441764,-553.6,0.00029589,2]
[377480961,1754423441774,-460.0,0.00029589,2]
[377480962,1754423441784,-460.0,0.00029589,2]
[377480963,1754423441795,-460.0,0.00029589,2]
[377480964,1754423441805,-460.0,0.00029589,2]
[377480965,1754423441815,-531.32946008,0.00029589,2]
[377480966,1754423441826,-460.0,0.00029589,2]
[377480967,1754423441836,-460.0,0.00029589,2]
[377480968,1754423441846,-460.0,0.00029589,2]
[377480969,1754423441856,-460.0,0.00029589,2]
[377480970,1754423441866,-493.57,0.00029589,2]
[377480971,1754423441876,-2870.23,0.00029589,2]
[377480972,1754423441885,-460.0,0.00029589,2]
[377480973,1754423441896,-460.0,0.00029589,2]
[377480974,1754423441905,-19201.22,0.00029589,2]
[377480975,1754423441916,-460.0,0.00029589,2]
[377480976,1754423441925,-260.0,0.00029743,2]
[377480977,1754423441935,-460.0,0.00029863,2]
[377480978,1754423441945,-499.95,0.00029863,2]
[377480979,1754423441954,-460.0,0.00029863,2]
[377480980,1754423441964,-846.84,0.00029863,2]
[377480981,1754423441974,-460.0,0.00029863,2]
[377480982,1754423441984,-553.6,0.00029863,2]
[377480983,1754423441993,-460.0,0.00029863,2]
[377480984,1754423442003,-460.0,0.00029863,2]
[377480985,1754423442013,-460.0,0.00029863,2]
[377480986,1754423442022,-460.0,0.00029863,2]
[377480987,1754423442032,-460.0,0.00029863,2]
[377480988,1754423442041,-460.0,0.00029863,2]
[377480989,1754423442051,-460.0,0.00029863,2]
[377480990,1754423442061,-460.0,0.00029863,2]
[377480991,1754423442070,-493.57,0.00029863,2]
[377480992,1754423442079,-2870.23,0.00029863,2]
[377480993,1754423442089,-460.0,0.00029863,2]
[377480994,1754423442098,-460.0,0.00029863,2]
[377480995,1754423442108,-460.0,0.00029863,2]
[377480996,1754423442117,-19201.22,0.00029863,2]
[377480997,1754423442127,-1494.04146353,0.0003,2]
[377480998,1754423442136,-2861.35570165,0.0003001,2]
[377480999,1754423442146,-151.0,0.00030097,2]
[377481000,1754423442155,-11152.46134822,0.0003013,5]
[377481001,1754423442166,-1000.0,0.0003013,2]
[377481002,1754423442177,-694.04369481,0.0003013,2]
[377481003,1754423442186,-460.0,0.00030136,2]
[377481004,1754423442196,-499.95,0.00030136,2]
[377481005,1754423442331,-460.0,0.00030136,2]
[377481006,1754423442344,-846.84,0.00030136,2]
[377481007,1754423442354,-460.0,0.00030136,2]
[377481008,1754423442364,-553.6,0.00030136,2]
[377481009,1754423442374,-460.0,0.00030136,2]
[377481010,1754423442385,-460.0,0.00030136,2]
[377481011,1754423442394,-460.0,0.00030136,2]
[377481012,1754423442403,-460.0,0.00030136,2]
[377481013,1754423442414,-460.0,0.00030136,2]
[377481014,1754423442424,-460.0,0.00030136,2]
[377481016,1754423442433,-460.0,0.00030136,2]
[377481017,1754423442442,-460.0,0.00030136,2]
[377481018,1754423442451,-493.57,0.00030136,2]
[377481019,1754423442461,-2870.23,0.00030136,2]
[377481020,1754423442471,-478.3199185,0.00030136,2]
[377481021,1754423442480,-460.0,0.00030136,2]
[377481022,1754423442490,-460.0,0.00030136,2]
[377481023,1754423442499,-19201.22,0.00030136,2]
[377481024,1754423442508,-1517.02598451,0.0003017,2]
[377481025,1754423442517,-961.20172144,0.000302,2]
[377481026,1754423442527,-4000.0,0.00030286,4]
[377481027,1754423442536,-360.0,0.00030291,2]
[377481028,1754423442546,-728.85,0.000304,4]
[377481029,1754423442555,-1494.04146353,0.000304,2]
[377481030,1754423442565,-460.0,0.0003041,2]
[377481031,1754423442574,-499.95,0.0003041,2]
[377481033,1754423442583,-460.0,0.0003041,2]
[377481034,1754423442592,-846.84,0.0003041,2]
[377481035,1754423442602,-460.0,0.0003041,2]
[377481036,1754423442611,-553.6,0.0003041,2]
[377481037,1754423442620,-460.0,0.0003041,2]
[377481038,1754423442629,-161.02314282,0.0003041,2]
[377481039,1754423442639,-460.0,0.0003041,2]
[377481040,1754423442648,-465.53547486,0.0003041,2]
[377481041,1754423442657,-460.0,0.0003041,2]
[377481042,1754423442667,-460.0,0.0003041,2]
[377481043,1754423442676,-460.0,0.0003041,2]
[377481044,1754423442686,-460.0,0.0003041,2]
[377481045,1754423442695,-493.57,0.0003041,2]
[377481046,1754423442704,-318.19971441,0.0003041,2]
[377481067,1754423446737,-461.15695721,0.00027087,3]
[377481068,1754423446746,-460.0,0.00027397,2]
[377481069,1754423446757,-460.0,0.00027671,2]
[377481070,1754423446767,-460.0,0.00027671,2]
[377481071,1754423446777,-460.0,0.00027945,2]
[377481072,1754423446787,-460.0,0.00028219,2]
[377481073,1754423446797,-110.95477734,0.00028493,2]
[377481074,1754423446808,-349.04522266,0.00028493,2]
[377481075,1754423446817,-460.0,0.00028767,2]
[377481076,1754423446826,-460.0,0.00029041,2]
[377481077,1754423446835,-460.0,0.00029315,2]
[377481078,1754423446844,-460.0,0.00029589,2]
[377481079,1754423446854,-460.0,0.00029863,2]
[377481080,1754423446863,-460.0,0.00030136,2]
[377481081,1754423446872,-2552.03028559,0.0003041,2]
[377481082,1754423446881,-185.14367988,0.0003041,2]
[377481083,1754423446890,-460.0,0.0003041,2]
[377481084,1754423446899,-19201.22,0.0003041,2]
[377481085,1754423446909,-460.0,0.0003041,2]
[377481086,1754423446920,-587.0,0.00030482,2]
[377481087,1754423446930,-200.0,0.00030483,120]
[377481088,1754423446940,-8659.58662871,0.000305,2]
[377481089,1754423446949,-1025.36,0.000305,2]
[377481090,1754423446959,-6000.0,0.00030622,4]
[377481091,1754423446970,-1494.04146353,0.00030673,2]
[377481092,1754423446980,-11337.30122592,0.00030683,14]
[377481093,1754423446992,-330.72575575,0.00030683,14]
[377481094,1754423508396,160.0,0.0002,3]
[377481098,1754423511580,160.0,0.0002,3]
[377481101,1754423538128,442.52980499,0.00025247,2]
[377481103,1754423540808,309.610663,0.00025607,2]
[377481104,1754423558293,6349.11594032,0.00025205,2]
[377481105,1754423558320,2731.45626333,0.00025205,2]
[377481106,1754423558413,9080.57220356,0.00025205,2]
[377481107,1754423558496,8187.97153311,0.00025205,2]
[377481108,1754423558523,892.60067045,0.00025205,2]
[377481109,1754423558608,9080.57220356,0.00025205,2]
[377481110,1754423558913,9080.57220356,0.00025205,2]
[377481111,1754423559006,946.25492243,0.00025205,2]
[377481112,1754423559032,8134.31728113,0.00025205,2]
[377481113,1754423559081,9080.57220356,0.00025205,2]
[377481114,1754423559178,2785.11051531,0.00025205,2]
[377481115,1754423559206,6295.46168825,0.00025205,2]
[377481116,1754423559284,9080.57220356,0.00025455,3]
[377481117,1754423568996,4623.96610819,0.00025652,2]
[377481118,1754423569018,376.03389181,0.00025652,2]
[377481120,1754423577261,5000.0,0.00025652,2]
[377481122,1754423585852,5000.0,0.00025652,2]
[377481125,1754423593750,5000.0,0.00025652,2]
[377481126,1754423609605,4623.96610819,0.00025652,2]
[377481127,1754423609628,376.03389181,0.00025652,2]
[377481128,1754423625211,5000.0,0.00025652,2]
[377481133,1754423643568,5000.0,0.00025652,2]
[377481134,1754423660114,362.01,0.00023927,2]
[377481135,1754423685239,899.07010527,0.000203,2]
[377481136,1754423730227,1000.0,0.000213,2]
[377481137,1754423758614,5000.0,0.00025652,2]
[377481140,1754423769157,2362.88600292,0.00025599,2]
[377481141,1754423769179,1516.18258228,0.00025599,2]
[377481142,1754423774456,5000.0,0.00025652,2]
[377481143,1754423790189,5000.0,0.00025652,2]
[377481144,1754423805844,5000.0,0.00025652,2]
[377481145,1754423816497,160.0,0.0002,3]
[377481146,1754423817545,3323.81741772,0.00025205,2]
[377481147,1754423817576,3164.65560868,0.00025205,2]
[377481148,1754423817638,6488.47302635,0.00025205,2]
[377481149,1754423817730,6488.47302635,0.00025205,2]
[377481150,1754423817807,3858.39833862,0.00025205,2]
[377481151,1754423817835,2630.07468773,0.00025205,2]
[377481152,1754423817922,6488.47302635,0.00025205,2]
[377481153,1754423818000,6488.47302635,0.00025205,2]
[377481154,1754423818093,4392.97925957,0.00025205,2]
[377481155,1754423818122,2095.49376678,0.00025205,2]
[377481156,1754423818193,6488.47302635,0.00025205,2]
[377481157,1754423818291,6488.47302635,0.00025455,3]
[377481158,1754423821499,4927.56018052,0.00025652,2]
[377481159,1754423821524,72.43981948,0.00025652,2]
[377481160,1754423836696,2470.57872329,0.00025652,2]
[377481161,1754423839069,192.12186416,0.00025648,2]
[377481162,1754423841005,223.920448,0.00024976,2]
[377481163,1754423841612,285.79690985,0.00024977,2]
[377481164,1754423849130,189.25201466,0.00025291,5]
[377481168,1754423902369,3977.3406367,0.00024986,2]
[377481169,1754423936788,192.12186415,0.00025647,2]
[377481170,1754423960169,-214.83749123,0.00025746,2]
[377481171,1754423962061,419.31379,0.00013699,2]
[377481172,1754423962285,419.31379,0.00020187,2]
[377481173,1754423963990,2324.41394556,0.00025649,2]
[377481175,1754423995984,174.980243,0.00024992,2]
[377481176,1754423996229,174.980243,0.00024992,61]
[377481177,1754423996438,174.980243,0.00024992,120]
[377481181,1754424003882,500.0,0.00025205,2]
[377481182,1754424013187,1455.436683,0.00024793,2]
[377481183,1754424013640,-214.83749123,0.00025746,2]
[377481184,1754424046974,208.1822755,0.00024793,2]
[377481186,1754424075766,5016.01994344,0.00025205,2]
[377481200,1754424150476,154.334357,0.00024974,2]
[377481201,1754424184564,910.0,0.00025652,2]
[377481206,1754424252768,814.43269221,0.00025646,2]
[377481207,1754424252791,1219.42951019,0.00025646,2]
[377481208,1754424256115,6459.6763203,0.00024746,2]
[377481209,1754424357522,380.0,0.00024745,2]
[377481218,1754424367854,666.0,0.00024745,2]
[377481219,1754424386693,1238.55518602,0.00025652,2]
[377481220,1754424393012,163.85,0.00025,7]
[377481221,1754424409905,2118.49508475,0.000203,2]
[377481222,1754424415845,164.05477686,0.00025643,2]
[377481226,1754424455246,217.30590785,0.00024971,2]
[377481229,1754424533008,1833.33879989,0.00025638,2]
[377481230,1754424559244,160.15683092,0.00025638,2]
[377481243,1754424571770,406.587521,0.00023552,2]
[377481250,1754424619071,425.983863,0.00024741,2]
[377481252,1754424632301,-300.0,0.00025737,2]
[377481254,1754424632312,-1200.0,0.00025737,2]
[377481256,1754424632321,-521.72221708,0.00025738,2]
[377481258,1754424632331,-379.75791587,0.00025738,2]
[377481281,1754424632498,-500.0,0.00025738,2]
[377481283,1754424632508,-500.0,0.00025738,2]
[377481285,1754424632518,-500.0,0.00025738,2]
[377481287,1754424632528,-500.0,0.00025738,2]
[377481289,1754424632539,-500.0,0.00025738,2]
[377481291,1754424632548,-500.0,0.00025738,2]
[377481293,1754424632558,-206.42209814,0.00025738,2]
[377481295,1754424632568,-500.0,0.00025738,2]
[377481297,1754424632578,-500.0,0.00025738,2]
[377481299,1754424632588,-500.0,0.00025738,2]
[377481301,1754424632598,-500.0,0.00025738,2]
[377481303,1754424632608,-500.0,0.00025738,2]
[377481305,1754424632618,-500.0,0.00025738,2]
[377481307,1754424632628,-500.0,0.00025738,2]
[377481309,1754424632638,-414.01450106,0.00025738,2]
[377481311,1754424632647,-500.0,0.00025738,2]
[377481313,1754424632657,-500.0,0.00025738,2]
[377481315,1754424632666,-500.0,0.00025738,2]
[377481317,1754424632676,-500.0,0.00025738,2]
[377481319,1754424632685,-500.0,0.00025738,2]
[377481321,1754424632698,-500.0,0.00025738,2]
[377481323,1754424632707,-500.0,0.00025738,2]
[377481325,1754424632722,-500.0,0.00025738,2]
[377481327,1754424632732,-500.0,0.00025738,2]
[377481329,1754424632741,-500.0,0.00025738,2]
[377481331,1754424632750,-500.0,0.00025738,2]
[377481333,1754424632760,-500.0,0.00025738,2]
[377481335,1754424632771,-500.0,0.00025738,2]
[377481337,1754424632781,-500.0,0.00025738,2]
[377481339,1754424632790,-500.0,0.00025738,2]
[377481341,1754424632799,-500.0,0.00025738,2]
[377481343,1754424632808,-500.0,0.00025738,2]
[377481345,1754424632818,-500.0,0.00025738,2]
[377481347,1754424632827,-500.0,0.00025738,2]
[377481349,1754424632836,-500.0,0.00025738,2]
[377481351,1754424632846,-500.0,0.00025738,2]
[377481353,1754424632855,-500.0,0.00025738,2]
[377481355,1754424632865,-500.0,0.00025738,2]
[377481357,1754424632874,-500.0,0.00025738,2]
[377481359,1754424632883,-500.0,0.00025738,2]
[377481361,1754424632893,-500.0,0.00025738,2]
[377481363,1754424632902,-500.0,0.00025738,2]
[377481365,1754424632911,-500.0,0.00025738,2]
[377481367,1754424632921,-500.0,0.00025738,2]
[377481369,1754424632930,-500.0,0.00025738,2]
[377481371,1754424632939,-396.84243082,0.00025738,2]
[377481373,1754424632949,-500.0,0.00025738,2]
[377481375,1754424632958,-500.0,0.00025738,2]
[377481377,1754424632971,-500.0,0.00025738,2]
[377481379,1754424632981,-500.0,0.00025738,2]
[377481381,1754424632990,-500.0,0.00025738,2]
[377481383,1754424632999,-500.0,0.00025738,2]
[377481386,1754424633009,-500.0,0.00025738,2]
[377481388,1754424633018,-500.0,0.00025738,2]
[377481390,1754424633028,-500.0,0.00025738,2]
[377481391,1754424633037,-589.21818219,0.00025738,2]
[377481394,1754424633047,-500.0,0.00025738,2]
[377481396,1754424633056,-500.0,0.00025738,2]
[377481398,1754424633065,-500.0,0.00025738,2]
[377481399,1754424633075,-500.0,0.00025738,2]
[377481402,1754424633085,-500.0,0.00025738,2]
[377481404,1754424633095,-500.0,0.00025738,2]
[377481406,1754424633105,-500.0,0.00025738,2]
[377481408,1754424633114,-500.0,0.00025738,2]
[377481410,1754424633125,-500.0,0.00025738,2]
[377481412,1754424633134,-500.0,0.00025738,2]
[377481414,1754424633143,-500.0,0.00025738,2]
[377481415,1754424633152,-500.0,0.00025738,2]
[377481418,1754424633162,-500.0,0.00025738,2]
[377481420,1754424633173,-500.0,0.00025738,2]
[377481422,1754424633183,-500.0,0.00025738,2]
[377481424,1754424633193,-500.0,0.00025738,2]
[377481426,1754424633203,-500.0,0.00025738,2]
[377481427,1754424633213,-500.0,0.00025738,2]
[377481429,1754424633228,-550.0,0.00025738,2]
[377481431,1754424633238,-500.0,0.00025738,2]
[377481433,1754424633248,-500.0,0.00025738,2]
[377481435,1754424633259,-500.0,0.00025738,2]
[377481437,1754424633268,-500.0,0.00025738,2]
[377481439,1754424633279,-212.66827789,0.00025738,2]
[377481441,1754424633289,-500.0,0.00025738,2]
[377481444,1754424633299,-500.0,0.00025738,2]
[377481445,1754424633310,-500.0,0.00025738,2]
[377481447,1754424633320,-500.0,0.00025738,2]
[377481450,1754424633331,-500.0,0.00025738,2]
[377481452,1754424633341,-153.65,0.00025739,10]
[377481454,1754424633351,-15075.1252295,0.00025739,2]
[377481455,1754424633361,-500.0,0.00025742,2]
[377481458,1754424633371,-167.35596027,0.00025742,2]
[377481459,1754424633382,-1200.0,0.00025743,2]
[377481461,1754424633392,-10642.43082312,0.00025743,2]
[377481464,1754424633406,-402.67135502,0.00025743,2]
[377481466,1754424633418,-23888.28215184,0.00025743,2]
[377481513,1754424638117,-2622.46917875,0.00025743,2]
[377481514,1754424638127,-162.017,0.00025745,11]
[377481516,1754424638136,-2221.41384601,0.00025749,2]
[377481518,1754424638148,-6175.69272135,0.00025749,2]
[377481521,1754424638171,-16502.89343264,0.00025749,2]
[377481523,1754424638180,-5016.01994328,0.00025934,4]
[377481525,1754424638190,-419.31379,0.00026676,2]
[377481527,1754424638199,-5000.0,0.000268,2]
[377481529,1754424638208,-5016.01994328,0.00026969,6]
[377481531,1754424638218,-2842.36591916,0.0002699,2]
[377481534,1754424638227,-4025.26974578,0.00027023,2]
[377481537,1754424638236,-1170.15860617,0.00027023,2]
[377481540,1754424638246,-150.0,0.00027044,2]
[377481542,1754424638255,-151.0,0.00027046,2]
[377481544,1754424638265,-120601.001836,0.00027053,2]
[377481546,1754424638278,-1113.2651432,0.00027053,2]
[377481548,1754424638287,-370000.0,0.00027063,2]
[377481550,1754424638296,-995.1074131,0.00027123,3]
[377481552,1754424638305,-869.57858146,0.00027193,2]
[377481554,1754424638314,-15075.1252295,0.00027387,2]
[377481556,1754424638324,-460.0,0.00027397,2]
[377481558,1754424638333,-460.0,0.00027397,2]
[377481559,1754424638342,-460.0,0.00027397,2]
[377481562,1754424638351,-460.0,0.00027397,2]
[377481564,1754424638361,-460.0,0.00027397,2]
[377481566,1754424638370,-460.0,0.00027397,2]
[377481568,1754424638379,-460.0,0.00027397,2]
[377481570,1754424638389,-460.0,0.00027397,2]
[377481572,1754424638398,-460.0,0.00027397,2]
[377481574,1754424638408,-460.0,0.00027397,2]
[377481575,1754424638417,-460.0,0.00027397,2]
[377481577,1754424638426,-460.0,0.00027397,2]
[377481578,1754424638435,-460.0,0.00027397,2]
[377481579,1754424638445,-2017.23,0.00027397,2]
[377481580,1754424638455,-460.0,0.00027397,2]
[377481581,1754424638464,-1993.53,0.00027397,2]
[377481582,1754424638475,-460.0,0.00027397,2]
[377481583,1754424638484,-460.0,0.00027397,2]
[377481584,1754424638495,-460.0,0.00027397,2]
[377481585,1754424638505,-460.0,0.00027397,2]
[377481586,1754424638515,-1586.98,0.00027397,2]
[377481587,1754424638525,-460.0,0.00027397,2]
[377481588,1754424638535,-460.0,0.00027397,2]
[377481589,1754424638547,-460.0,0.00027397,2]
[377481590,1754424638558,-460.0,0.00027397,2]
[377481591,1754424638568,-460.0,0.00027397,2]
[377481592,1754424638578,-460.0,0.00027397,2]
[377481593,1754424638587,-460.0,0.00027397,2]
[377481594,1754424638598,-460.0,0.00027397,2]
[377481595,1754424638608,-460.0,0.00027397,2]
[377481596,1754424638617,-625.18,0.00027397,2]
[377481597,1754424638627,-460.0,0.00027397,2]
[377481598,1754424638637,-460.0,0.00027397,2]
[377481599,1754424638648,-460.0,0.00027397,2]
[377481600,1754424638658,-460.0,0.00027397,2]
[377481601,1754424638667,-460.0,0.00027397,2]
[377481602,1754424638677,-21374.24,0.00027397,2]
[377481603,1754424638687,-460.0,0.00027397,2]
[377481604,1754424638698,-460.0,0.00027397,2]
[377481605,1754424638708,-460.0,0.00027397,2]
[377481606,1754424638717,-460.0,0.00027397,2]
[377481607,1754424638727,-460.0,0.00027397,2]
[377481608,1754424638738,-460.0,0.00027397,2]
[377481609,1754424638747,-936.36,0.00027397,2]
[377481610,1754424638756,-726.59,0.00027397,2]
[377481611,1754424638766,-460.0,0.00027397,2]
[377481612,1754424638776,-460.0,0.00027397,2]
[377481613,1754424638785,-460.0,0.00027397,2]
[377481614,1754424638795,-460.0,0.00027397,2]
[377481615,1754424638804,-460.0,0.00027397,2]
[377481616,1754424638814,-719.63,0.00027397,2]
[377481617,1754424638823,-460.0,0.00027397,2]
[377481618,1754424638833,-460.0,0.00027397,2]
[377481619,1754424638842,-685.95,0.00027397,2]
[377481620,1754424638851,-460.0,0.00027397,2]
[377481621,1754424638861,-460.0,0.00027397,2]
[377481622,1754424638870,-460.0,0.00027397,2]
[377481623,1754424638879,-460.0,0.00027397,2]
[377481624,1754424638888,-460.0,0.00027397,2]
[377481625,1754424638898,-460.0,0.00027397,2]
[377481626,1754424638907,-460.0,0.00027397,2]
[377481627,1754424638916,-460.0,0.00027397,2]
[377481628,1754424638927,-460.0,0.00027397,2]
[377481629,1754424638941,-460.0,0.00027397,2]
[377481630,1754424638951,-600.0,0.00027462,2]
[377481631,1754424638960,-151.0,0.00027544,2]
[377481632,1754424638970,-820.97609993,0.00027544,2]
[377481633,1754424638980,-30150.2504591,0.00027661,2]
[377481634,1754424638990,-278.3162858,0.00027661,2]
[377481635,1754424638999,-460.0,0.00027671,2]
[377481636,1754424639008,-460.0,0.00027671,2]
[377481637,1754424639018,-460.0,0.00027671,2]
[377481638,1754424639028,-357.15449046,0.00027671,2]
[377481639,1754424639037,-460.0,0.00027671,2]
[377481640,1754424639047,-460.0,0.00027671,2]
[377481641,1754424639056,-460.0,0.00027671,2]
[377481642,1754424639065,-521.3094835,0.00027671,2]
[377481643,1754424639074,-460.0,0.00027671,2]
[377481644,1754424639083,-460.0,0.00027671,2]
[377481645,1754424639093,-460.0,0.00027671,2]
[377481646,1754424639102,-460.0,0.00027671,2]
[377481647,1754424639111,-548.96,0.00027671,2]
[377481648,1754424639120,-2017.23,0.00027671,2]
[377481649,1754424639129,-460.0,0.00027671,2]
[377481650,1754424639138,-1993.53,0.00027671,2]
[377481651,1754424639147,-460.0,0.00027671,2]
[377481652,1754424639156,-460.0,0.00027671,2]
[377481653,1754424639165,-460.0,0.00027671,2]
[377481654,1754424639174,-460.0,0.00027671,2]
[377481655,1754424639183,-1586.98,0.00027671,2]
[377481656,1754424639192,-460.0,0.00027671,2]
[377481657,1754424639201,-558.16,0.00027671,2]
[377481658,1754424639211,-460.0,0.00027671,2]
[377481659,1754424639220,-460.0,0.00027671,2]
[377481660,1754424639230,-460.0,0.00027671,2]
[377481661,1754424639239,-460.0,0.00027671,2]
[377481662,1754424639249,-460.0,0.00027671,2]
[377481663,1754424639258,-460.0,0.00027671,2]
[377481664,1754424639267,-460.0,0.00027671,2]
[377481665,1754424639276,-625.18,0.00027671,2]
[377481666,1754424639286,-460.0,0.00027671,2]
[377481667,1754424639295,-460.0,0.00027671,2]
[377481668,1754424639305,-460.0,0.00027671,2]
[377481669,1754424639315,-460.0,0.00027671,2]
[377481670,1754424639324,-21374.24,0.00027671,2]
[377481671,1754424639334,-460.0,0.00027671,2]
[377481672,1754424639345,-460.0,0.00027671,2]
[377481673,1754424639354,-460.0,0.00027671,2]
[377481674,1754424639363,-278.23,0.00027671,2]
[377481675,1754424639373,-936.36,0.00027671,2]
[377481676,1754424639383,-726.59,0.00027671,2]
[377481677,1754424639393,-460.0,0.00027671,2]
[377481678,1754424639402,-460.0,0.00027671,2]
[377481679,1754424639411,-460.0,0.00027671,2]
[377481680,1754424639421,-460.0,0.00027671,2]
[377481681,1754424639430,-719.63,0.00027671,2]
[377481682,1754424639439,-460.0,0.00027671,2]
[377481683,1754424639449,-460.0,0.00027671,2]
[377481684,1754424639458,-685.95,0.00027671,2]
[377481685,1754424639467,-460.0,0.00027671,2]
[377481686,1754424639476,-460.0,0.00027671,2]
[377481687,1754424639485,-460.0,0.00027671,2]
[377481688,1754424639495,-460.0,0.00027671,2]
[377481689,1754424639504,-460.0,0.00027671,2]